fUSD/lending_fUSD_20250906
["ID","MTS","AMOUNT","RATE_DAILY","PERIOD"]
[383815812,1757127053367,-400.0,0.00069999,120]
[383815814,1757127053377,-400.0,0.00069999,120]
[383815816,1757127053386,-400.0,0.00069999,120]
[383815818,1757127053397,-400.0,0.00069999,120]
[383815820,1757127053407,-508.73064963,0.00069999,120]
[383815822,1757127053417,-400.0,0.00069999,120]
[383815823,1757127053427,-400.0,0.00069999,120]
[383815824,1757127053437,-400.0,0.00069999,120]
[383815825,1757127053447,-400.0,0.00069999,120]
[383815826,1757127053457,-400.0,0.00069999,120]
[383815827,1757127053467,-400.0,0.00069999,120]
[383815828,1757127053477,-400.0,0.00069999,120]
[383815829,1757127053487,-400.0,0.00069999,120]
[383815830,1757127053496,-400.0,0.00069999,120]
[383815831,1757127053506,-400.0,0.00069999,120]
[383815832,1757127053516,-400.0,0.00069999,120]
[383815833,1757127053526,-400.0,0.00069999,120]
[383815834,1757127053536,-197.65531018,0.00069999,120]
[383815835,1757127053547,-400.0,0.00069999,120]
[383815836,1757127053556,-271.39520654,0.00069999,120]
[383815837,1757127053566,-400.0,0.00069999,120]
[383815838,1757127053576,-400.0,0.00069999,120]
[383815839,1757127053586,-400.0,0.00069999,120]
[383815840,1757127053596,-400.0,0.00069999,120]
[383815841,1757127053605,-400.0,0.00069999,120]
[383815842,1757127053615,-165.52493956,0.00069999,120]
[383815843,1757127053624,-400.0,0.00069999,120]
[383815844,1757127053634,-400.0,0.00069999,120]
[383815845,1757127053644,-400.0,0.00069999,120]
[383815846,1757127053654,-400.0,0.00069999,120]
[383815847,1757127053664,-400.0,0.00069999,120]
[383815848,1757127053674,-400.0,0.00069999,120]
[383815849,1757127053684,-400.0,0.00069999,120]
[383815850,1757127053694,-400.0,0.00069999,120]
[383815851,1757127053704,-400.0,0.00069999,120]
[383815852,1757127053715,-400.0,0.00069999,120]
[383815853,1757127053725,-185.42686823,0.00069999,120]
[383815854,1757127053736,-400.0,0.00069999,120]
[383815855,1757127053747,-400.0,0.00069999,120]
[383815856,1757127053757,-400.0,0.00069999,120]
[383815857,1757127053768,-400.0,0.00069999,120]
[383815858,1757127053779,-400.0,0.00069999,120]
[383815859,1757127053789,-400.0,0.00069999,120]
[383815860,1757127053800,-400.0,0.00069999,120]
[383815861,1757127053810,-400.0,0.00069999,120]
[383815862,1757127053820,-400.0,0.00069999,120]
[383815863,1757127053831,-400.0,0.00069999,120]
[383815864,1757127053841,-400.0,0.00069999,120]
[383815865,1757127053850,-400.0,0.00069999,120]
[383815866,1757127053860,-400.0,0.00069999,120]
[383815867,1757127053870,-400.0,0.00069999,120]
[383815868,1757127053880,-400.0,0.00069999,120]
[383815869,1757127053890,-400.0,0.00069999,120]
[383815870,1757127053900,-400.0,0.00069999,120]
[383815871,1757127053911,-400.0,0.00069999,120]
[383815872,1757127053920,-465.80135897,0.00069999,120]
[383815873,1757127053931,-400.0,0.00069999,120]
[383815874,1757127053942,-400.0,0.00069999,120]
[383815875,1757127053952,-400.0,0.00069999,120]
[383815876,1757127053962,-400.0,0.00069999,120]
[383815877,1757127053973,-400.0,0.00069999,120]
[383815878,1757127053983,-400.0,0.00069999,120]
[383815879,1757127053993,-400.0,0.00069999,120]
[383815880,1757127054003,-400.0,0.00069999,120]
[383815881,1757127054012,-400.0,0.00069999,120]
[383815882,1757127054023,-400.0,0.00069999,120]
[383815883,1757127054033,-400.0,0.00069999,120]
[383815884,1757127054042,-400.0,0.00069999,120]
[383815885,1757127054052,-400.0,0.00069999,120]
[383815886,1757127054062,-411.52725835,0.00069999,120]
[383815887,1757127054072,-400.0,0.00069999,120]
[383815888,1757127054083,-400.0,0.00069999,120]
[383815889,1757127054093,-400.0,0.00069999,120]
[383815890,1757127054103,-496.02196789,0.00069999,120]
[383815891,1757127054114,-400.0,0.00069999,14]
[383815892,1757127054127,-400.0,0.00069999,14]
[383815893,1757127054137,-151.2570078,0.00069999,120]
[383815894,1757127054148,-400.0,0.00069999,14]
[383815895,1757127054157,-400.0,0.00069999,14]
[383815896,1757127054167,-400.0,0.00069999,14]
[383815897,1757127054177,-400.0,0.00069999,14]
[383815898,1757127054187,-400.0,0.00069999,14]
[383815899,1757127054198,-400.0,0.00069999,14]
[383815900,1757127054208,-400.0,0.00069999,14]
[383815901,1757127054218,-400.0,0.00069999,14]
[383815902,1757127054229,-400.0,0.00069999,14]
[383815903,1757127054240,-151.0,0.00069999,120]
[383815904,1757127054251,-400.0,0.00069999,120]
[383815905,1757127054260,-400.0,0.00069999,120]
[383815906,1757127054271,-151.0,0.00069999,120]
[383815907,1757127054281,-400.0,0.00069999,120]
[383815908,1757127054291,-400.0,0.00069999,120]
[383815909,1757127054302,-151.0,0.00069999,120]
[383815910,1757127054312,-400.0,0.00069999,120]
[383815911,1757127054322,-400.0,0.00069999,120]
[383815912,1757127054332,-151.0,0.00069999,120]
[383815913,1757127054342,-400.0,0.00069999,120]
[383815914,1757127054352,-400.0,0.00069999,120]
[383815915,1757127054363,-400.0,0.00069999,120]
[383815916,1757127054373,-151.0,0.00069999,120]
[383815917,1757127054383,-525.52911153,0.00069999,120]
[383815918,1757127054522,-151.0,0.00069999,120]
[383815919,1757127054533,-948.99,0.00069999,120]
[383815920,1757127054543,-948.99,0.00069999,120]
[383815921,1757127054552,-948.99,0.00069999,120]
[383815922,1757127054562,-948.99,0.00069999,120]
[383815923,1757127054571,-948.99,0.00069999,120]
[383815924,1757127054581,-948.99,0.00069999,120]
[383815925,1757127054591,-948.99,0.00069999,120]
[383815926,1757127054599,-948.99,0.00069999,120]
[383815927,1757127054609,-948.99,0.00069999,120]
[383815928,1757127054618,-948.99,0.00069999,120]
[383815929,1757127054628,-948.99,0.00069999,120]
[383815930,1757127054637,-400.0,0.00069999,120]
[383815931,1757127054647,-400.0,0.00069999,120]
[383815932,1757127054657,-400.0,0.00069999,120]
[383815933,1757127054667,-400.0,0.00069999,120]
[383815934,1757127054677,-400.0,0.00069999,120]
[383815935,1757127054687,-400.0,0.00069999,120]
[383815936,1757127054697,-471.70776031,0.00069999,120]
[383815937,1757127054707,-426.07,0.00069999,120]
[383815938,1757127054716,-426.07,0.00069999,120]
[383815939,1757127054726,-426.07,0.00069999,120]
[383815940,1757127054736,-426.07,0.00069999,120]
[383815941,1757127054746,-426.07,0.00069999,120]
[383815942,1757127054755,-426.07,0.00069999,120]
[383815943,1757127054764,-426.07,0.00069999,120]
[383815944,1757127054774,-426.07,0.00069999,120]
[383815945,1757127054783,-426.07,0.00069999,120]
[383815946,1757127054794,-426.07,0.00069999,120]
[383815947,1757127054804,-426.07,0.00069999,120]
[383815948,1757127054813,-400.0,0.00069999,120]
[383815949,1757127054823,-400.0,0.00069999,120]
[383815950,1757127054832,-400.0,0.00069999,120]
[383815951,1757127054842,-300.0,0.00069999,120]
[383815952,1757127054852,-400.0,0.00069999,120]
[383815953,1757127054862,-500.0,0.00069999,120]
[383815954,1757127054872,-400.0,0.00069999,120]
[383815955,1757127054882,-320.1565679,0.00069999,120]
[383815956,1757127054892,-151.0,0.00069999,120]
[383815957,1757127054903,-600.0,0.00069999,120]
[383815958,1757127054913,-400.0,0.00069999,120]
[383815959,1757127054923,-500.0,0.00069999,120]
[383815960,1757127054934,-400.0,0.00069999,120]
[383815961,1757127054944,-400.0,0.00069999,120]
[383815962,1757127054953,-400.0,0.00069999,120]
[383815963,1757127054963,-151.0,0.00069999,120]
[383815964,1757127054972,-500.0,0.00069999,120]
[383815965,1757127054982,-156.587,0.00069999,120]
[383815966,1757127054992,-151.0,0.00069999,120]
[383815967,1757127055002,-400.0,0.00069999,120]
[383815968,1757127055011,-600.0,0.00069999,120]
[383815969,1757127055022,-400.0,0.00069999,120]
[383815970,1757127055032,-500.0,0.00069999,120]
[383815971,1757127055042,-500.0,0.00069999,120]
[383815972,1757127055051,-500.0,0.00069999,120]
[383815973,1757127055061,-400.0,0.00069999,120]
[383815974,1757127055071,-400.0,0.00069999,120]
[383815975,1757127055081,-400.0,0.00069999,120]
[383815976,1757127055090,-500.0,0.00069999,120]
[383815977,1757127055099,-162.380719,0.00069999,120]
[383815978,1757127055109,-400.0,0.00069999,120]
[383815979,1757127055119,-500.0,0.00069999,120]
[383815980,1757127055133,-400.0,0.00069999,120]
[383815981,1757127055143,-600.0,0.00069999,120]
[383815982,1757127055153,-500.0,0.00069999,120]
[383815983,1757127055162,-500.0,0.00069999,120]
[383815984,1757127055173,-400.0,0.00069999,120]
[383815985,1757127055182,-151.0,0.00069999,120]
[383815986,1757127055193,-151.0,0.00069999,120]
[383815987,1757127055204,-500.0,0.00069999,120]
[383815988,1757127055213,-400.0,0.00069999,120]
[383815989,1757127055222,-168.3888056,0.00069999,120]
[383815990,1757127055233,-500.0,0.00069999,120]
[383815991,1757127055242,-500.0,0.00069999,120]
[383815992,1757127055252,-400.0,0.00069999,120]
[383815993,1757127055262,-151.8384098,0.00069999,120]
[383815994,1757127055272,-174.61919141,0.00069999,120]
[383815995,1757127055282,-600.0,0.00069999,120]
[383815996,1757127055292,-407.50102174,0.00069999,120]
[383815997,1757127055302,-500.0,0.00069999,120]
[383815998,1757127055312,-151.50990684,0.00069999,120]
[383815999,1757127055321,-500.0,0.00069999,120]
[383816000,1757127055331,-151.0,0.00069999,120]
[383816001,1757127055340,-500.0,0.00069999,120]
[383816002,1757127055350,-181.08010149,0.00069999,120]
[383816003,1757127055360,-663.6910289,0.00069999,120]
[383816004,1757127055370,-500.0,0.00069999,120]
[383816005,1757127055380,-500.0,0.00069999,120]
[383816006,1757127055389,-151.0,0.00069999,120]
[383816007,1757127055399,-500.0,0.00069999,120]
[383816008,1757127055408,-500.0,0.00069999,120]
[383816009,1757127055418,-151.0,0.00069999,120]
[383816010,1757127055428,-500.0,0.00069999,120]
[383816011,1757127055437,-500.0,0.00069999,120]
[383816012,1757127055447,-500.0,0.00069999,120]
[383816013,1757127055457,-151.0,0.00069999,120]
[383816014,1757127055466,-500.0,0.00069999,120]
[383816015,1757127055475,-155.9940727,0.00069999,120]
[383816016,1757127055485,-250.0,0.00069999,120]
[383816017,1757127055494,-568.30555072,0.00069999,120]
[383816018,1757127055504,-400.0,0.00069999,120]
[383816019,1757127055514,-400.0,0.00069999,120]
[383816020,1757127055524,-400.0,0.00069999,120]
[383816021,1757127055534,-400.0,0.00069999,120]
[383816022,1757127055544,-250.0,0.00069999,120]
[383816023,1757127055553,-520.0,0.00069999,120]
[383816024,1757127055563,-250.0,0.00069999,120]
[383816025,1757127055572,-400.0,0.00069999,120]
[383816026,1757127055582,-400.0,0.00069999,120]
[383816027,1757127055591,-2500.0,0.00069999,120]
[383816028,1757127055601,-250.0,0.00069999,120]
[383816029,1757127055611,-549.79551537,0.00069999,120]
[383816030,1757127055621,-400.0,0.00069999,120]
[383816031,1757127055631,-250.0,0.00069999,120]
[383816032,1757127055640,-400.0,0.00069999,120]
[383816033,1757127055651,-500.0,0.00069999,120]
[383816034,1757127055661,-250.0,0.00069999,120]
[383816035,1757127055672,-2500.0,0.00069999,120]
[383816036,1757127055681,-400.0,0.00069999,120]
[383816037,1757127055691,-250.0,0.00069999,120]
[383816038,1757127055701,-400.0,0.00069999,120]
[383816039,1757127055711,-500.0,0.00069999,120]
[383816040,1757127055720,-250.0,0.00069999,120]
[383816041,1757127055731,-400.0,0.00069999,120]
[383816042,1757127055741,-1453.54066605,0.00069999,120]
[383816043,1757127055750,-250.0,0.00069999,120]
[383816044,1757127055760,-200.40297397,0.00069999,120]
[383816045,1757127055770,-500.0,0.00069999,120]
[383816046,1757127055780,-250.0,0.00069999,120]
[383816047,1757127055789,-380.30727402,0.00069999,120]
[383816048,1757127055798,-151.0,0.00069999,120]
[383816049,1757127055808,-500.0,0.00069999,120]
[383816050,1757127055818,-250.0,0.00069999,120]
[383816051,1757127055827,-151.0,0.00069999,120]
[383816052,1757127055837,-250.0,0.00069999,120]
[383816053,1757127055846,-500.0,0.00069999,120]
[383816054,1757127055855,-151.0,0.00069999,120]
[383816055,1757127055864,-250.0,0.00069999,120]
[383816056,1757127055874,-500.0,0.00069999,120]
[383816057,1757127055883,-151.0,0.00069999,120]
[383816058,1757127055892,-250.0,0.00069999,120]
[383816059,1757127055902,-500.0,0.00069999,120]
[383816060,1757127055912,-200.0,0.00069999,120]
[383816061,1757127055921,-151.0,0.00069999,120]
[383816062,1757127055930,-500.0,0.00069999,120]
[383816063,1757127055939,-500.0,0.00069999,120]
[383816064,1757127055949,-250.0,0.00069999,120]
[383816065,1757127055959,-207.4,0.00069999,120]
[383816066,1757127055968,-151.0,0.00069999,120]
[383816067,1757127055978,-500.0,0.00069999,120]
[383816068,1757127055988,-250.0,0.00069999,120]
[383816069,1757127055997,-500.0,0.00069999,120]
[383816070,1757127056007,-6888.0,0.00069999,120]
[383816071,1757127056016,-215.0738,0.00069999,120]
[383816072,1757127056026,-500.0,0.00069999,120]
[383816073,1757127056035,-359.3460691,0.00069999,120]
[383816074,1757127056045,-223.0315306,0.00069999,120]
[383816075,1757127056054,-500.0,0.00069999,120]
[383816076,1757127056064,-500.0,0.00069999,120]
[383816077,1757127056074,-231.28369723,0.00069999,120]
[383816078,1757127056083,-500.0,0.00069999,120]
[383816079,1757127056093,-500.0,0.00069999,120]
[383816080,1757127056103,-500.0,0.00069999,120]
[383816081,1757127056113,-239.84119403,0.00069999,120]
[383816082,1757127056128,-160.0,0.00069999,120]
[383816083,1757127056137,-564.30141647,0.00069999,120]
[383816084,1757127056147,-248.71531821,0.00069999,120]
[383816085,1757127056156,-257.91778498,0.00069999,120]
[383816086,1757127056167,-151.0,0.00069999,120]
[383816087,1757127056177,-160.0,0.00069999,120]
[383816088,1757127056186,-267.46074303,0.00069999,120]
[383816089,1757127056195,-160.0,0.00069999,120]
[383816090,1757127056204,-250.0,0.00069999,120]
[383816091,1757127056213,-151.0,0.00069999,120]
[383816092,1757127056223,-277.35679052,0.00069999,120]
[383816093,1757127056234,-160.0,0.00069999,120]
[383816094,1757127056244,-250.0,0.00069999,120]
[383816095,1757127056253,-151.0,0.00069999,120]
[383816096,1757127056264,-160.0,0.00069999,120]
[383816097,1757127056275,-287.61899177,0.00069999,120]
[383816098,1757127056284,-250.0,0.00069999,120]
[383816099,1757127056293,-151.0,0.00069999,120]
[383816100,1757127056302,-160.0,0.00069999,120]
[383816101,1757127056311,-250.0,0.00069999,120]
[383816102,1757127056320,-298.26089446,0.00069999,120]
[383816103,1757127056330,-151.0,0.00069999,120]
[383816104,1757127056339,-250.0,0.00069999,120]
[383816105,1757127056348,-309.29654756,0.00069999,120]
[383816106,1757127056358,-151.0,0.00069999,120]
[383816107,1757127056368,-250.0,0.00069999,120]
[383816108,1757127056377,-320.74051982,0.00069999,120]
[383816109,1757127056391,-250.0,0.00069999,120]
[383816110,1757127056400,-151.0,0.00069999,120]
[383816111,1757127056411,-250.0,0.00069999,120]
[383816112,1757127056421,-332.60791905,0.00069999,120]
[383816113,1757127056431,-151.0,0.00069999,120]
[383816114,1757127056441,-250.0,0.00069999,120]
[383816115,1757127056450,-400.0,0.00069999,120]
[383816116,1757127056460,-344.91441206,0.00069999,120]
[383816117,1757127056469,-400.0,0.00069999,120]
[383816118,1757127056479,-151.0,0.00069999,120]
[383816119,1757127056489,-245.71487051,0.00069999,120]
[383816120,1757127056499,-250.0,0.00069999,120]
[383816121,1757127056512,-357.6762453,0.00069999,120]
[383816122,1757127056522,-151.0,0.00069999,120]
[383816123,1757127056532,-370.91026638,0.00069999,120]
[383816124,1757127056542,-151.0,0.00069999,120]
[383816125,1757127056552,-384.63394623,0.00069999,120]
[383816126,1757127056561,-151.0,0.00069999,120]
[383816127,1757127056571,-398.86540225,0.00069999,120]
[383816128,1757127056580,-151.0,0.00069999,120]
[383816129,1757127056590,-151.0,0.00069999,120]
[383816130,1757127056600,-5000.0,0.00069999,120]
[383816131,1757127056609,-219.71396308,0.00069999,120]
[383816132,1757127056618,-5000.0,0.00069999,120]
[383816133,1757127056628,-5000.0,0.00069999,120]
[383816134,1757127056638,-5000.0,0.00069999,120]
[383816135,1757127056647,-5000.0,0.00069999,120]
[383816136,1757127056657,-5000.0,0.00069999,120]
[383816137,1757127056666,-1754.14370948,0.00069999,120]
[383816138,1757127056676,-226.53,0.0007,120]
[383816139,1757127056685,-161.76,0.0007,60]
[383816140,1757127056694,-500.0,0.0007,120]
[383816141,1757127056703,-154.0,0.0007,120]
[383816142,1757127056714,-180.51138,0.0007,120]
[383816143,1757127056724,-1125.37794811,0.0007,120]
[383816144,1757127056734,-504.13436123,0.0007,120]
[383816145,1757127056744,-166.0,0.0007,120]
[383816146,1757127056753,-984688.08967362,0.0007,15]
[383816147,1757127056874,-833493.184187,0.0007,15]
[383816148,1757127057950,-36.56287033,0.00065753,2]
[383816149,1757127058014,-266.60719813,0.0004903,2]
[383816150,1757127076535,162.8103008,0.00022879,2]
[383816151,1757127076568,828.7296992,0.00022879,2]
[383816152,1757127165683,10000.0,0.00030137,120]
[383816164,1757128037145,-609.10375466,0.00024083,2]
[383816165,1757128039120,-217.30540247,0.00024083,2]
[383816166,1757128040112,-165.13084287,0.00024083,2]
[383816167,1757128040135,-48.38127563,0.00025287,2]
[383816168,1757128145103,-964.62,0.00024146,2]
[383816169,1757128145126,-964.62,0.00025416,2]
[383816170,1757128145146,-466.61470316,0.00026392,2]
[383816171,1757128145168,-964.62,0.00026687,2]
[383816172,1757128145190,-964.62,0.00027958,2]
[383816173,1757128145212,-307.59609269,0.0002883,2]
[383816174,1757128148113,-726.68707345,0.0002883,2]
[383816175,1757128148138,-964.62,0.00029229,2]
[383816176,1757128148163,-964.62,0.000305,2]
[383816177,1757128148186,-1200.0,0.00031306,3]
[383816178,1757128148210,-964.62,0.00031771,2]
[383816179,1757128148230,-500.0,0.00032269,7]
[383816180,1757128148252,-400.0,0.00032835,2]
[383816181,1757128148271,-500.0,0.00032836,7]
[383816182,1757128148294,-500.0,0.00032877,7]
[383816183,1757128148315,-500.0,0.00032877,7]
[383816184,1757128148350,-964.62,0.00033041,2]
[383816185,1757128148380,-500.0,0.00033176,7]
[383816186,1757128148400,-500.0,0.00033413,7]
[383816187,1757128148422,-500.0,0.00033524,7]
[383816188,1757128148444,-964.62,0.00034312,2]
[383816189,1757128148466,-500.0,0.00034408,7]
[383816190,1757128148500,-240.15472845,0.00034533,2]
[383816191,1757128148538,-320.0,0.00035285,2]
[383816192,1757128148560,-500.0,0.00035319,7]
[383816193,1757128148584,-964.62,0.00035583,2]
[383816194,1757128148605,-160.679503,0.00035616,10]
[383816195,1757128148628,-964.62,0.00036854,2]
[383816196,1757128148654,-535.474,0.00037329,48]
[383816197,1757128148679,-391.73178998,0.000374,30]
[383816198,1757128148705,-196.0,0.00038,120]
[383816199,1757128148732,-162.0,0.00038,120]
[383816200,1757128148763,-964.62,0.00038125,2]
[383816201,1757128148784,-500.0,0.00038191,7]
[383816202,1757128148805,-169.33,0.00039195,2]
[383816203,1757128148828,-964.62,0.00039396,2]
[383816204,1757128148851,-964.62,0.00040666,2]
[383816205,1757128148871,-500.0,0.00041556,30]
[383816206,1757128148893,-964.62,0.00041937,2]
[383816207,1757128148914,-500.7550062,0.00042022,30]
[383816208,1757128148935,-500.0,0.00042372,30]
[383816209,1757128148957,-500.0,0.00043101,30]
[383816210,1757128148981,-964.62,0.00043208,2]
[383816211,1757128149002,-466.61470316,0.00043396,2]
[383816212,1757128149023,-303.58,0.00044319,2]
[383816213,1757128149045,-964.62,0.00044479,2]
[383816214,1757128149070,-162.0,0.000456,120]
[383816215,1757128149091,-500.0,0.00045611,30]
[383816216,1757128149113,-964.62,0.0004575,2]
[383816217,1757128149134,-150.48,0.00045789,30]
[383816218,1757128150110,-196.53950787,0.00045924,60]
[383816219,1757128155720,1589.0,0.0004483,30]
[383816220,1757128156073,-603.5,0.00045918,60]
[383816221,1757128156093,-500.0,0.00046702,30]
[383816222,1757128156114,-500.0,0.00046789,30]
[383816223,1757128156135,-964.62,0.0004702,2]
[383816224,1757128156155,-500.0,0.00047316,30]
[383816225,1757128156176,-500.0,0.00047554,30]
[383816226,1757128156198,-964.62,0.00048291,2]
[383816227,1757128156218,-187.17621976,0.00048578,120]
[383816228,1757128156240,-381.0352159,0.00048578,120]
[383816229,1757128156261,-5000.0,0.00048579,120]
[383816230,1757128156282,-666.0,0.00048671,15]
[383816231,1757128156303,-250.0,0.00048679,120]
[383816232,1757128156323,-500.0,0.0004924,30]
[383816233,1757128156344,-164.29,0.00049777,120]
[383816234,1757128156364,-154.24,0.00049866,2]
[383816235,1757128156384,-4000.0,0.00049953,2]
[383816236,1757128156404,-162.96,0.0004996,2]
[383816237,1757128156425,-249.59,0.00050483,2]
[383816238,1757128156447,-159.23,0.00050621,2]
[383816239,1757128156621,-500.0,0.00050654,60]
[383816240,1757128156641,-500.0,0.00050798,60]
[383816241,1757128156660,-659.17918134,0.00051056,120]
[383816242,1757128156792,-154.02566117,0.00051056,120]
[383816243,1757128156816,-98.67410826,0.00051156,120]
[383816244,1757128158932,-98.21589174,0.00051156,120]
[383816245,1757128158956,-63.25531098,0.000515,7]
[383816246,1757128159005,195.5,0.00045918,60]
[383816247,1757128159092,-1986.74468902,0.000515,7]
[383816248,1757128159113,-160.0,0.00051573,7]
[383816249,1757128159133,-200.0,0.0005192,2]
[383816250,1757128159155,-162.0,0.000532,120]
[383816251,1757128159174,-305.49541783,0.00053633,120]
[383816252,1757128159195,-159.23,0.00053995,2]
[383816253,1757128159215,-535.08911572,0.000551,30]
[383816254,1757128159236,-535.474,0.00055497,106]
[383816255,1757128159257,-560.49745556,0.0005554,120]
[383816256,1757128159277,-164.29,0.00056001,120]
[383816257,1757128159296,-500.0,0.00057357,120]
[383816258,1757128159316,-159.23,0.0005737,2]
[383816259,1757128159337,-150.0,0.00058,2]
[383816260,1757128159357,-162.96,0.00058205,2]
[383816261,1757128159377,-500.0,0.00058439,120]
[383816262,1757128159397,-636.91655497,0.000589,8]
[383816263,1757128159419,-5000.0,0.00059,120]
[383816264,1757128159440,-500.0,0.00059364,120]
[383816265,1757128159462,-500.0,0.00059479,120]
[383816266,1757128159483,-277.0,0.000596,120]
[383816267,1757128159502,-500.0,0.00059678,120]
[383816268,1757128159522,-813.20484249,0.00059978,120]
[383816269,1757128159544,-970.16059074,0.0006,120]
[383816270,1757128159563,-1609.02771609,0.000603,90]
[383816271,1757128159582,-466.61470316,0.000604,2]
[383816272,1757128159602,-1200.0,0.000605,30]
[383816273,1757128159621,-500.0,0.00060703,120]
[383816274,1757128159642,-159.23,0.00060745,2]
[383816275,1757128159661,-372.16,0.000609,7]
[383816276,1757128159681,-162.0,0.000609,120]
[383816277,1757128159702,-164.29,0.00062225,120]
[383816278,1757128159723,-501.26150102,0.00062752,120]
[383816279,1757128159744,-877.67466322,0.000638,120]
[383816280,1757128159764,-600.0,0.000638,30]
[383816281,1757128159784,-400.0,0.00064238,120]
[383816282,1757128159804,-150.0,0.00064349,30]
[383816283,1757128159824,-150.0,0.00064741,30]
[383816284,1757128159844,-150.0,0.00064794,30]
[383816285,1757128159864,-150.0,0.00064973,30]
[383816286,1757128161649,-398.21009404,0.00065553,2]
[383816287,1757128162118,-601.78990596,0.00065553,2]
[383816288,1757128162142,-2500.0,0.00065553,2]
[383816289,1757128162163,-1334.39072923,0.00065553,15]
[383816290,1757128162184,-400.0,0.00065652,120]
[383816291,1757128162205,-1000.0,0.00065653,30]
[383816292,1757128162226,-500.0,0.00065653,2]
[383816293,1757128162248,-1435.38782681,0.00065653,15]
[383816294,1757128163149,-267.86437912,0.00065653,15]
[383816295,1757128166170,-183.1336983,0.00065653,15]
[383816296,1757128167713,-246.6180971,0.00065653,15]
[383816297,1757128167963,500.0,0.00029228,2]
[383816298,1757128168018,242.81499506,0.00029228,2]
[383816299,1757128169800,-213.254,0.00065653,15]
[383816300,1757128172299,-235.07905061,0.00065653,15]
[383816301,1757128172531,200.0,0.0006,120]
[383816302,1757128175792,-288.6672367,0.00065653,15]
[383816303,1757128177923,-250.0,0.00065653,15]
[383816304,1757128179652,-345.50077398,0.00065653,15]
[383816305,1757128181932,-473.07716126,0.00065653,15]
[383816306,1757128183482,-250.0,0.00065653,2]
[383816307,1757128185058,-173.28339991,0.00065653,2]
[383816308,1757128185760,501.9212367,0.00029228,2]
[383816309,1757128186769,1773.63407842,0.00065,120]
[383816310,1757128186802,-220.2774069,0.00065,120]
[383816311,1757128189381,-159.51543229,0.00065,120]
[383816312,1757128193461,-199.84904452,0.00065,120]
[383816313,1757128196383,-202.19861576,0.00065,120]
[383816314,1757128199826,-173.3407199,0.00064,120]
[383816315,1757128202585,-26.6592801,0.00064,120]
[383816316,1757128202609,-144.73517719,0.00065,120]
[383816317,1757128203527,369.37581888,0.00029228,2]
[383816318,1757128203677,33046.84450112,0.00046,120]
[383816319,1757128203699,14860.75285409,0.00046,120]
[383816320,1757128204751,-316.68186064,0.00046,120]
[383816321,1757128207965,-171.57057685,0.00063904,120]
[383816322,1757128208001,-44.51850979,0.00065,120]
[383816323,1757128210672,-195.0,0.000506,120]
[383816324,1757128210695,-114.39915208,0.00063134,120]
[383816325,1757128211415,154.0,0.00038,120]
[383816326,1757128214462,-154.0,0.000467,120]
[383816327,1757128214507,-154.0,0.000554,120]